bitfinex/quotes_ETHUSD_20220212
["timestamp","ask_amount","ask_price","bid_price","bid_amount"]
[1644689405440,0.01055013,2959.5,2959.2,0.50155137]
[1644689406443,0.76269047,2960.1,2959.0,1.3188]
[1644689406643,0.76269047,2960.1,2959.2,0.01055137]
[1644689406644,0.01055013,2959.5,2959.2,0.01055137]
[1644689406843,0.89226743,2959.4,2959.2,0.01055137]
[1644689407643,0.89226743,2959.4,2958.5,0.3414]
[1644689407849,0.89226743,2959.4,2959.2,0.01055128]
[1644689408698,0.89226743,2959.4,2957.8,0.4188]
[1644689408699,0.1688,2959.3,2957.8,0.4188]
[1644689409198,0.1688,2959.3,2959.2,0.01055128]
[1644689409999,0.1688,2959.3,2959.2,0.01062619]
[1644689410700,0.1688,2959.3,2957.8,1.09516]
[1644689410701,7.05,2959.2,2957.9,3.5]
[1644689410899,0.69411232,2958.2,2957.8,0.25]
[1644689411099,0.69411232,2958.2,2957.5,3.5]
[1644689411600,0.69411232,2958.2,2957.4,7.78699997]
[1644689412244,0.69411232,2958.2,2957.5,0.169]
[1644689412744,0.69411232,2958.2,2957.7,0.00551154]
[1644689413544,0.69411232,2958.2,2957.5,0.169]
[1644689413845,0.69411232,2958.2,2957.8,0.010548]
[1644689414847,0.72343505,2957.7,2957.5,0.169]
[1644689416094,0.72343505,2957.7,2957.4,7.48]
[1644689416294,0.72343505,2957.7,2957.5,0.00993856]
[1644689416993,0.3387,2957.6,2957.5,0.00993856]
[1644689417194,0.3387,2957.6,2957.4,0.004]
[1644689417393,0.3387,2957.6,2957.5,0.00993856]
[1644689417794,0.86029739,2957.1,2957.0,0.03976022]
[1644689418394,0.86029739,2957.1,2956.8,7.48]
[1644689419194,0.3387,2957.6,2956.8,7.48]
[1644689419442,0.84771189,2957.6,2956.8,7.48]
[1644689419844,0.84095581,2957.6,2956.8,7.48]
[1644689420349,0.6564749,2957.5,2956.8,7.48]
[1644689420750,0.33194392,2957.4,2956.8,7.48]
[1644689420948,0.33194392,2957.4,2957.1,0.0099924]
[1644689421949,0.33194392,2957.4,2956.8,7.48]
[1644689422149,0.33194392,2957.4,2957.1,0.00999231]
[1644689422552,0.33194392,2957.4,2956.7,17.47030619]
[1644689422750,0.33194392,2957.4,2956.7,17.63930619]
[1644689423397,0.33194392,2957.4,2956.7,17.47030619]
[1644689424796,0.33194392,2957.4,2956.7,17.42030619]
[1644689424997,0.33194392,2957.4,2956.7,7.48]
[1644689425197,0.33194392,2957.4,2956.7,17.48]
[1644689425803,0.33194392,2957.4,2956.9,0.00549756]
[1644689426600,0.67160341,2957.0,2956.9,0.00549756]
[1644689426801,0.67160341,2957.0,2956.7,17.48]
[1644689427246,1.00354733,2957.0,2956.7,17.48]
[1644689428347,1.00354733,2957.0,2956.7,17.49055004]
[1644689429147,1.00354733,2957.0,2956.7,17.48]
[1644689429547,1.00354733,2957.0,2956.7,17.49055004]
[1644689429548,0.33194392,2957.0,2956.7,17.49055004]
[1644689430149,0.33194392,2957.4,2956.7,17.49055004]
[1644689430348,0.33194392,2957.4,2956.7,17.48]
[1644689430800,0.85821933,2957.2,2956.7,17.49054427]
[1644689431601,0.85821933,2957.2,2956.7,17.48]
[1644689431802,0.85821933,2957.2,2956.8,0.01054409]
[1644689432802,0.85821933,2957.2,2956.7,17.48]
[1644689433005,0.85821933,2957.2,2956.9,0.01054399]
[1644689433404,0.33194392,2957.1,2956.9,0.01054399]
[1644689434104,0.33194392,2957.1,2956.7,17.48]
[1644689434303,0.33194392,2957.1,2956.9,0.00992882]
[1644689434943,0.33194392,2957.1,2957.0,0.66]
[1644689435442,0.10432068,2957.1,2957.0,0.66]
[1644689435644,0.00992649,2957.5,2957.1,7.05]
[1644689435844,0.00992649,2957.5,2957.2,0.66]
[1644689436044,0.00992649,2957.5,2957.2,2.35055]
[1644689436450,0.51811587,2958.8,2957.2,5.85055]
[1644689436646,0.64206329,2959.5,2957.4,6.142]
[1644689436648,0.00992709,2957.5,2957.4,6.142]
[1644689436846,2.709e-05,2957.5,2957.4,35.08556574]
[1644689437046,0.169,2959.4,2957.5,19.96]
[1644689437048,0.5102089,2959.2,2957.5,19.96]
[1644689437246,0.03968271,2959.5,2957.7,1.68973]
[1644689437446,0.80335457,2959.2,2957.8,4.1599]
[1644689437645,0.80335457,2959.2,2957.8,9.42589129]
[1644689437847,0.80335457,2959.2,2957.9,1.0]
[1644689438046,0.80335457,2959.2,2958.2,0.8449]
[1644689438297,0.80335457,2959.2,2958.2,0.491]
[1644689438498,0.1688,2959.1,2958.2,0.491]
[1644689438701,0.80335457,2959.2,2958.2,0.6598]
[1644689439099,0.00996019,2958.8,2958.2,0.6598]
[1644689439298,0.89413658,2958.7,2958.2,0.6598]
[1644689439698,0.00996019,2958.8,2958.2,0.6598]
[1644689440100,0.1688,2959.4,2958.3,0.84489]
[1644689440297,0.0099606,2958.6,2958.4,0.491]
[1644689440498,0.0099606,2958.6,2958.5,0.169]
[1644689440698,0.0099606,2958.6,2958.5,0.66]
[1644689440903,0.0099606,2958.6,2958.5,0.491]
[1644689441300,0.79905619,2958.9,2958.5,0.491]
[1644689441502,0.00996043,2958.7,2958.5,0.491]
[1644689442346,0.1688,2959.4,2958.5,0.491]
[1644689442546,0.1688,2959.4,2958.7,0.84484]
[1644689442847,0.73890171,2959.1,2958.7,0.84484]
[1644689443047,0.1688,2959.4,2958.7,0.84484]
[1644689443249,0.03981846,2959.5,2958.8,0.491]
[1644689443647,0.49945051,2960.3,2958.8,0.491]
[1644689443850,0.00995631,2959.2,2958.8,0.491]
[1644689444250,0.00995631,2959.2,2958.9,0.84483]
[1644689444447,0.00995631,2959.2,2959.0,0.441]
[1644689444847,0.77557212,2959.5,2959.0,0.441]
[1644689445048,0.00995631,2959.2,2959.0,0.441]
[1644689446098,0.72557212,2959.5,2959.0,0.441]
[1644689446298,0.00995648,2959.2,2959.0,0.441]
[1644689447298,0.1689,2960.2,2959.0,0.441]
[1644689447499,0.00995648,2959.2,2959.0,0.441]
[1644689448498,0.64008656,2959.5,2959.0,0.441]
[1644689451049,0.00995075,2959.4,2959.0,0.441]
[1644689452054,0.64008656,2959.5,2959.0,0.441]
[1644689452250,0.00995083,2959.3,2959.0,0.441]
[1644689453294,0.64008656,2959.5,2959.0,0.441]
[1644689453492,0.00995091,2959.3,2959.0,0.441]
[1644689454494,0.59008656,2959.5,2959.0,0.441]
[1644689454697,0.00995091,2959.3,2959.0,3.883139]
[1644689454893,0.00995091,2959.3,2959.0,0.441]
[1644689455600,0.59008656,2959.5,2959.0,0.441]
[1644689455800,0.00995091,2959.3,2959.0,0.441]
[1644689456801,0.59008656,2959.5,2959.0,1.28585]
[1644689457049,0.00995092,2959.3,2959.0,0.441]
[1644689458047,0.59008656,2959.5,2959.0,0.441]
[1644689459450,0.00994529,2959.4,2959.0,0.441]
[1644689459857,0.00994529,2959.4,2959.1,3.41751487]
[1644689460052,0.00994529,2959.4,2959.1,3.90851487]
[1644689460352,0.76186968,2960.3,2959.1,5.59797487]
[1644689460553,1.43770861,2960.2,2959.1,5.59797487]
[1644689460797,0.0010146,2960.9,2959.1,5.59797487]
[1644689460798,0.01019077,2959.4,2959.1,5.59797487]
[1644689461195,0.01019077,2959.4,2959.1,8.65287487]
[1644689461598,0.1688,2960.7,2959.1,8.65287487]
[1644689461799,0.01019077,2959.4,2959.1,9.83397487]
[1644689461998,0.01019077,2959.4,2959.1,9.82259583]
[1644689462800,0.1688,2960.7,2959.1,8.82259583]
[1644689463009,1.437557,2960.6,2959.2,0.6598]
[1644689463201,0.01019077,2959.4,2959.3,3.41558281]
[1644689463399,0.01019077,2959.4,2959.3,0.491]
[1644689464100,0.1688,2960.7,2959.3,0.491]
[1644689464300,0.00991211,2959.5,2959.3,0.491]
[1644689465145,0.03964249,2959.9,2959.3,0.491]
[1644689465146,0.88822008,2959.9,2959.3,0.491]
[1644689465547,0.00991203,2959.5,2959.3,0.491]
[1644689466347,0.1688,2960.7,2959.3,0.491]
[1644689466549,0.00991203,2959.5,2959.3,0.491]
[1644689467554,0.84589466,2959.9,2959.3,0.491]
[1644689467752,0.0099017,2959.5,2959.3,0.491]
[1644689468798,0.84589466,2959.9,2959.3,0.491]
[1644689468998,0.0099017,2959.5,2959.3,0.491]
[1644689469998,0.84589466,2959.9,2959.3,0.491]
[1644689470202,0.0099017,2959.5,2959.3,0.491]
[1644689471102,0.00855131,2959.5,2959.3,0.441]
[1644689471302,0.84589466,2959.9,2959.3,0.441]
[1644689471504,0.00993053,2959.5,2959.3,0.441]
[1644689471804,0.00993053,2959.5,2959.4,4.33573712]
[1644689472050,0.00993053,2959.5,2959.4,4.99553712]
[1644689472244,0.00993053,2959.5,2959.4,5.99553712]
[1644689472445,0.67040477,2960.8,2959.4,5.99553712]
[1644689472646,0.67040477,2960.8,2959.5,3.82035193]
[1644689472647,1.43749761,2960.7,2959.5,3.82035193]
[1644689472850,1.43749761,2960.7,2959.6,0.491]
[1644689473047,1.43749761,2960.7,2959.7,0.1688]
[1644689473251,1.43749761,2960.7,2959.8,1.33559]
[1644689473452,1.43749761,2960.7,2959.9,4.20779999]
[1644689473648,0.0010146,2960.9,2960.0,0.491]
[1644689473849,0.0010146,2960.9,2960.3,0.01207931]
[1644689474052,0.0010146,2960.9,2960.4,0.6598]
[1644689474249,0.0010146,2960.9,2960.5,0.27639994]
[1644689474449,0.0010146,2960.9,2960.6,2.34823]
[1644689474649,0.0010146,2960.9,2960.7,9.592]
[1644689474848,0.0010146,2960.9,2960.8,0.491]
[1644689475451,0.0010146,2960.9,2960.8,2.17943]
[1644689477806,0.0010146,2960.9,2960.8,2.34823]
[1644689478009,0.0010146,2960.9,2960.8,3.84823]
[1644689478707,0.0010146,2960.9,2960.8,2.1598]
[1644689479447,0.0010146,2960.9,2960.8,3.00401]
[1644689479647,0.60600678,2962.0,2960.9,5.9]
[1644689479848,0.04207136,2961.4,2961.0,0.491]
[1644689480047,1.4370716,2961.3,2961.0,0.491]
[1644689481049,0.60600678,2962.0,2961.2,0.84413]
[1644689481251,0.60600678,2962.0,2960.8,2.6688]
[1644689481252,0.58871653,2961.1,2960.8,6.07642295]
[1644689481450,0.58871653,2961.1,2960.9,0.491]
[1644689482051,0.58871653,2961.1,2961.0,0.84415]
[1644689482252,0.58871653,2961.1,2961.0,1.33515]
[1644689483399,0.43871653,2961.1,2961.0,1.33515]
[1644689483602,0.43871653,2961.1,2960.9,0.0105201]
[1644689484000,0.43871653,2961.1,2961.0,0.84424]
[1644689485204,0.43871653,2961.1,2961.0,0.74424]
[1644689486008,0.43871653,2961.1,2961.0,1.23524]
[1644689486507,0.43871653,2961.1,2961.0,1.40733129]
[1644689487345,0.007,2962.2,2961.0,1.40733129]
[1644689487346,0.007,2962.2,2961.0,5.03414648]
[1644689487546,1.43697595,2962.1,2961.3,1.68817]
[1644689487746,1.43697595,2962.1,2961.4,0.491]
[1644689487945,1.43697595,2962.1,2961.6,0.84401]
[1644689488145,1.43697595,2962.1,2961.7,0.491]
[1644689489451,0.00443007,2962.0,2961.7,0.491]
[1644689489752,1.43697595,2961.9,2961.7,0.491]
[1644689490551,1.43697595,2961.9,2961.3,2.07917]
[1644689490552,1.38697595,2961.9,2961.3,2.07917]
[1644689490801,1.38697595,2961.9,2961.3,2.08912508]
[1644689490802,0.0099529,2961.9,2961.3,2.08912508]
[1644689491605,0.6303898,2962.0,2961.3,2.07917]
[1644689491803,0.007,2962.2,2961.3,2.07917]
[1644689492001,0.00995328,2961.7,2961.3,2.08912479]
[1644689492901,0.69868615,2962.1,2961.3,2.07917]
[1644689493102,0.69868615,2962.1,2961.3,2.08910864]
[1644689493103,0.00993747,2961.6,2961.3,2.08910864]
[1644689494101,0.69868615,2962.1,2961.3,2.07917]
[1644689494302,0.00993739,2961.6,2961.4,0.1688]
[1644689494745,0.00993739,2961.6,2961.4,3.62020505]
[1644689494946,0.00993739,2961.6,2961.5,1.33508]
[1644689495147,0.007,2962.2,2961.6,6.0]
[1644689495347,0.007,2962.2,2961.7,4.37076358]
[1644689495549,0.03973994,2962.4,2961.9,6.142]
[1644689495751,0.03973994,2962.4,2962.0,0.491]
[1644689495951,0.03973994,2962.4,2962.0,0.6596]
[1644689496365,0.1686,2963.6,2962.0,0.6596]
[1644689496366,1.02463228,2963.6,2962.1,7.05]
[1644689496553,1.29909125,2963.8,2962.2,0.491]
[1644689496554,0.1686,2963.3,2962.2,0.491]
[1644689496753,0.85603228,2963.7,2962.2,0.491]
[1644689496754,1.02463228,2963.7,2962.2,0.491]
[1644689496954,0.1686,2963.7,2962.2,3.98522643]
[1644689497154,0.1686,2963.7,2962.5,0.84369]
[1644689497355,0.1686,2963.7,2962.6,0.491]
[1644689497956,0.1686,2963.7,2962.6,20.451]
[1644689498213,0.1686,2963.7,2962.9,0.8437]
[1644689498403,0.68183218,2963.5,2962.9,0.8437]
[1644689499404,0.1686,2963.4,2962.9,0.8437]
[1644689499605,0.68183218,2963.5,2962.9,0.8437]
[1644689500305,0.01050979,2963.3,2963.0,0.491]
[1644689500504,0.04203284,2963.7,2963.0,0.491]
[1644689501310,0.0149622,2963.8,2962.8,2.33301518]
[1644689501507,0.0149622,2963.8,2962.8,2.82401518]
[1644689501508,0.75907835,2963.8,2962.8,2.82401518]
[1644689501708,0.75907835,2963.8,2962.8,2.33301518]
[1644689502746,0.75907835,2963.8,2962.9,0.1686]
[1644689503045,0.75907835,2963.8,2962.9,1.5033]
[1644689504046,0.0010146,2963.9,2962.9,1.5033]
[1644689505247,0.01050932,2963.5,2962.9,1.5033]
[1644689505447,0.73770329,2963.7,2962.9,1.5033]
[1644689506298,1.37594607,2963.7,2962.9,1.5033]
[1644689506703,1.28412905,2964.3,2962.9,1.5033]
[1644689506704,0.19491119,2964.7,2963.4,5.0]
[1644689506903,0.25,2964.9,2964.5,6.142]
[1644689507100,0.25,2964.9,2963.8,1.68663]
[1644689507101,0.25,2964.9,2964.6,0.5037738]
[1644689507299,0.25,2964.9,2964.2,0.491]
[1644689507501,0.85089564,2965.7,2963.8,1.68663]
[1644689507502,0.53640963,2965.6,2964.8,0.01205576]
[1644689507702,0.84854617,2966.2,2964.5,4.8]
[1644689507904,0.84854617,2966.2,2964.8,1.68616]
[1644689508299,0.84854617,2966.2,2964.9,0.491]
[1644689508502,0.84854617,2966.2,2965.2,4.8]
[1644689508503,0.74854617,2966.2,2965.2,4.8]
[1644689508702,4.6501,2966.9,2965.6,4.8]
[1644689508703,0.1308,2966.7,2965.6,4.8]
[1644689508903,1.27281926,2966.8,2965.7,0.491]
[1644689509106,1.27281926,2966.8,2965.4,0.1685]
[1644689509107,0.05400023,2966.4,2965.8,0.491]
[1644689509303,0.05400023,2966.4,2965.4,1.68582]
[1644689509304,0.91673576,2965.6,2965.4,1.68582]
[1644689509550,0.91673576,2965.6,2965.5,4.8]
[1644689509748,0.91673576,2965.6,2965.5,0.491]
[1644689509949,0.91673576,2965.6,2965.0,0.25]
[1644689509950,6.35,2965.5,2965.0,0.25]
[1644689510153,6.35,2965.5,2964.0,5.9271]
[1644689510154,0.1308,2965.4,2964.2,0.84333]
[1644689510354,0.1308,2965.4,2964.0,1.1271]
[1644689510355,0.491,2965.3,2964.0,0.25]
[1644689510550,1.566365,2965.2,2964.0,0.25]
[1644689510752,1.926565,2965.1,2963.5,3.5]
[1644689510951,1.566365,2965.0,2963.8,4.8]
[1644689511155,0.1768423,2965.0,2964.2,0.84326]
[1644689511354,0.1768423,2965.0,2964.1,6.48651]
[1644689511357,0.00493109,2964.7,2964.1,6.48651]
[1644689511759,0.04376861,2964.6,2963.8,0.1686]
[1644689511954,0.04376861,2964.6,2964.5,4.8]
[1644689512154,9.4915,2966.1,2964.6,0.84314]
[1644689512353,1.43540193,2965.5,2964.9,4.8]
[1644689512556,0.04661072,2965.1,2964.9,4.8]
[1644689513053,0.0460423,2965.0,2964.9,4.8]
[1644689514109,0.00655066,2965.1,2965.0,7.05]
[1644689514506,0.9587629,2965.6,2965.1,5.05]
[1644689514705,0.91673576,2965.6,2965.1,5.2186]
[1644689514907,0.91673576,2965.6,2965.2,4.8]
[1644689515106,0.91673576,2965.6,2965.3,0.1686]
[1644689517245,0.91673576,2965.6,2965.2,4.8]
[1644689517846,0.91673576,2965.6,2965.1,1.68599]
[1644689518047,0.91673576,2965.6,2965.3,0.84299]
[1644689518448,0.91673576,2965.6,2965.4,7.05]
[1644689518449,0.40144963,2965.6,2965.4,7.05]
[1644689518649,0.04202413,2966.0,2965.6,7.05]
[1644689518848,0.04202413,2966.0,2965.8,4.8]
[1644689519048,0.04202413,2966.0,2965.9,0.84279]
[1644689519248,0.04202413,2966.0,2965.8,1.68558]
[1644689519453,4.98084012,2967.1,2965.8,1.68558]
[1644689519454,0.1308,2966.9,2965.8,1.68558]
[1644689519648,1.28508753,2966.8,2965.8,1.68558]
[1644689519948,0.1307,2966.7,2965.8,6.48558]
[1644689520148,0.0805,2966.8,2965.8,4.8]
[1644689520348,0.0805,2966.8,2965.6,4.9685]
[1644689520549,0.0805,2966.8,2966.0,4.8]
[1644689520811,0.0805,2966.8,2965.7,1.68561]
[1644689520812,0.0305,2966.8,2966.7,4.8]
[1644689521011,0.0305,2966.8,2966.4,4.8]
[1644689521213,0.0305,2966.8,2966.1,0.63580002]
[1644689521411,0.0305,2966.8,2966.2,5.4595]
[1644689521712,0.63194012,2967.5,2966.5,4.8]
[1644689522014,0.63194012,2967.5,2966.3,4.9685]
[1644689522212,0.63194012,2967.5,2966.5,1.68516]
[1644689522412,0.84258682,2967.8,2966.9,4.8]
[1644689522413,0.63194012,2967.7,2966.9,4.8]
[1644689522614,0.63194012,2967.7,2967.1,4.8]
[1644689522810,0.63194012,2967.7,2966.6,0.6595]
[1644689523013,0.80044012,2967.6,2967.0,4.8]
[1644689523213,0.63194012,2967.8,2967.0,4.8]
[1644689523412,0.01049841,2967.4,2967.0,4.8]
[1644689523613,0.86683359,2967.3,2966.6,0.491]
[1644689523813,0.86683359,2967.3,2966.4,0.1683]
[1644689524012,0.86683359,2967.3,2966.5,0.491]
[1644689524212,0.63194012,2967.7,2966.5,0.491]
[1644689524213,0.00160275,2966.7,2966.5,0.491]
[1644689524849,0.00160275,2966.7,2966.6,1.68507]
[1644689525052,0.00160275,2966.7,2966.0,0.1685]
[1644689525053,2.29566902,2966.3,2966.0,0.1685]
[1644689525251,2.29566902,2966.3,2965.6,6.68430002]
[1644689525252,2.29566902,2966.3,2965.9,0.1685]
[1644689526454,2.29566902,2966.3,2965.6,4.8]
[1644689526656,2.29566902,2966.3,2965.4,1.01147]
[1644689526857,0.17836514,2966.2,2965.2,0.00986878]
[1644689527360,2.22403416,2966.3,2965.2,0.00986878]
[1644689527555,0.67498596,2965.6,2965.2,0.00986878]
[1644689527756,2.22403416,2966.3,2965.2,0.00986878]
[1644689527962,2.22403416,2966.3,2965.3,4.8]
[1644689528196,2.22403416,2966.3,2964.8,3.5]
[1644689528596,2.22403416,2966.3,2964.9,3.5]
[1644689528796,2.22403416,2966.3,2964.7,4.8]
[1644689528995,0.66597514,2965.6,2964.7,4.8]
[1644689529195,0.66597514,2965.6,2964.6,0.25]
[1644689529396,0.66597514,2965.6,2965.4,0.00500928]
[1644689530298,0.66597514,2965.6,2964.6,0.1686]
[1644689530498,0.66597514,2965.6,2965.4,0.00500936]
[1644689531506,0.66597514,2965.6,2964.6,0.1686]
[1644689531704,4.16597514,2965.6,2965.4,0.00991011]
[1644689531957,3.51347957,2965.5,2965.4,0.00991011]
[1644689532149,3.51347957,2965.5,2965.4,1.011e-05]
[1644689532150,3.54423957,2965.5,2965.4,1.011e-05]
[1644689532348,4.02176,2965.5,2965.4,1.011e-05]
[1644689532552,0.52176,2965.5,2965.4,1.011e-05]
[1644689532747,0.52176,2965.5,2964.5,0.2]
[1644689532947,0.2,2964.9,2963.6,3.6686]
[1644689533249,0.03077,2964.8,2963.6,0.1686]
[1644689533448,0.84367,2964.6,2963.7,0.1686]
[1644689533648,0.84257396,2964.0,2963.3,0.1686]
[1644689533850,0.84367,2964.6,2963.3,0.1686]
[1644689534048,0.84367,2964.6,2963.3,3.6686]
[1644689534249,0.84363,2964.9,2963.3,0.1686]
[1644689534450,0.03084,2964.8,2963.3,0.1686]
[1644689534951,0.8437,2964.6,2963.3,0.1686]
[1644689535151,0.8437,2964.6,2963.2,0.25]
[1644689535152,0.23085,2964.5,2963.2,0.25]
[1644689535350,0.2,2964.1,2963.2,0.25]
[1644689535549,0.03077,2964.0,2962.8,4.8]
[1644689535804,0.82563452,2963.2,2962.7,0.1686]
[1644689536203,0.2,2963.1,2962.7,0.1686]
[1644689536402,0.84422,2963.1,2962.7,0.1186]
[1644689536603,0.85626452,2963.2,2962.7,0.1186]
[1644689537708,7.25,2963.1,2962.1,3.07689261]
[1644689537907,0.2,2963.0,2961.9,0.1687]
[1644689538206,0.1686,2963.0,2961.4,1.01271]
[1644689538405,0.77580046,2962.3,2962.0,4.8]
[1644689538606,7.05,2963.1,2962.0,4.8]
[1644689538607,0.1686,2963.7,2962.0,4.8]
[1644689538805,1.2193,2964.0,2961.6,0.1686]
[1644689538806,0.1686,2963.9,2962.1,4.1596]
[1644689539006,11.90752494,2964.4,2962.7,4.8]
[1644689539007,9.7542,2964.4,2962.7,4.8]
[1644689539204,0.3686,2964.5,2963.0,0.84358]
[1644689539463,0.00159687,2963.9,2962.9,1.68716]
[1644689539651,0.00159687,2963.9,2962.7,3.5]
[1644689539852,0.00159687,2963.9,2962.8,0.1686]
[1644689540053,0.00159687,2963.9,2962.6,0.6596]
[1644689540256,0.00159687,2963.9,2962.6,0.491]
[1644689540453,0.04384844,2963.0,2962.7,0.1686]
[1644689541459,0.04384844,2963.0,2962.7,0.17910804]
[1644689541658,0.04384844,2963.0,2962.7,0.01050804]
[1644689542058,0.93613605,2963.0,2962.7,0.01050804]
[1644689542257,0.93613605,2963.0,2962.5,4.9686]
[1644689542258,0.88613605,2963.0,2962.5,0.1686]
[1644689542459,0.83613605,2963.0,2962.6,0.1686]
[1644689542660,0.04201743,2963.7,2962.9,4.8]
[1644689542861,0.04201743,2963.7,2962.7,0.01050804]
[1644689543297,3.5,2963.0,2962.7,0.01050804]
[1644689543498,3.5,2963.0,2962.6,0.491]
[1644689543699,3.5,2963.0,2962.7,0.01050862]
[1644689544699,3.5,2963.0,2962.4,0.1686]
[1644689545104,3.5,2963.0,2962.7,0.01050804]
[1644689545704,0.01448462,2962.9,2962.7,0.01050804]
[1644689545910,0.01448462,2962.9,2962.3,0.1686]
[1644689546306,3.46448462,2963.0,2962.7,4.81050804]
[1644689546506,3.46448462,2963.0,2962.8,3.54558165]
[1644689546706,3.46448462,2963.0,2962.9,5.291]
[1644689546953,3.46448462,2963.0,2962.9,0.491]
[1644689547147,3.46448462,2963.0,2962.9,0.391]
[1644689547347,3.46448462,2963.0,2962.9,5.191]
[1644689547751,3.46448462,2963.0,2962.9,5.3596]
[1644689548553,3.46448462,2963.0,2962.9,5.191]
[1644689549854,3.41448462,2963.0,2962.9,6.03462]
[1644689550056,3.41448462,2963.0,2962.9,5.3596]
[1644689550560,3.3155742,2963.0,2962.9,5.37027918]
[1644689550809,3.3155742,2963.0,2962.9,0.57027918]
[1644689551802,3.3155742,2963.0,2962.9,5.37027918]
[1644689552804,3.2655742,2963.0,2962.9,5.37027918]
[1644689553814,3.2655742,2963.0,2962.9,0.40167918]
[1644689554012,3.2655742,2963.0,2962.9,0.01067918]
[1644689554956,3.2655742,2963.0,2962.9,4.81067918]
[1644689554957,3.2155742,2963.0,2962.9,4.81067918]
[1644689556365,3.2155742,2963.0,2962.4,2.17848]
[1644689556366,7.05,2962.7,2961.8,0.8442]
[1644689556563,3.5,2962.6,2961.8,0.8442]
[1644689556763,0.491,2962.5,2961.0,7.48]
[1644689556965,5.47370924,2962.5,2961.0,7.48]
[1644689557161,5.47370924,2962.5,2960.7,9.38439076]
[1644689557162,0.491,2962.5,2961.1,3.5]
[1644689557362,0.491,2962.5,2961.6,0.01729076]
[1644689557563,0.491,2962.5,2960.8,3.5]
[1644689557564,0.491,2962.9,2962.4,0.01729076]
[1644689557763,3.2155742,2963.0,2962.6,0.01729076]
[1644689558405,0.78161485,2962.9,2962.6,0.01729076]
[1644689558612,0.78161485,2962.9,2961.7,3.6688]
[1644689558813,0.78161485,2962.9,2961.8,0.01729076]
[1644689559211,0.78161485,2962.9,2961.8,0.86120076]
[1644689559710,0.78161485,2962.9,2962.4,0.01729076]
[1644689560111,0.78161485,2962.9,2961.9,5.7530161]
[1644689560314,0.78161485,2962.9,2962.0,0.01998245]
[1644689560714,0.79212168,2962.9,2962.5,0.01050824]
[1644689560914,0.79212168,2962.9,2962.7,0.01729076]
[1644689561118,0.79212168,2962.9,2962.5,0.01050824]
[1644689561526,3.2155742,2963.0,2962.7,0.01729076]
[1644689561715,3.2155742,2963.0,2962.9,0.01729076]
[1644689561955,0.04201786,2963.6,2963.0,7.05]
[1644689562157,0.04201786,2963.6,2963.5,0.01729076]
[1644689562359,0.04201786,2963.6,2963.5,3.64178383]
[1644689562556,0.04201786,2963.6,2963.5,4.13278383]
[1644689562757,0.72462604,2963.9,2963.5,0.50829076]
[1644689562957,0.72462604,2963.9,2963.5,4.1173661]
[1644689563159,0.72462604,2963.9,2963.7,0.01729076]
[1644689563760,0.72462604,2963.9,2963.7,0.491]
[1644689563958,0.72462604,2963.9,2963.0,1.84266073]
[1644689564158,0.72462604,2963.9,2963.7,0.01729076]
[1644689564363,0.73513106,2963.9,2963.7,0.01729076]
[1644689564557,4.23513106,2963.9,2963.7,0.01729076]
[1644689564758,4.23513106,2963.9,2963.4,1.01215]
[1644689564958,3.51050502,2963.9,2963.4,1.01215]
[1644689565159,3.5,2963.9,2963.4,1.01215]
[1644689565359,3.5,2963.9,2963.8,0.01729076]
[1644689565701,3.51050502,2963.9,2963.8,0.01729076]
[1644689566307,3.51050502,2963.9,2963.6,0.01729076]
[1644689566507,3.5,2963.9,2963.6,0.01729076]
[1644689566906,0.87124718,2963.7,2963.6,0.01729076]
[1644689567607,3.5,2963.9,2963.6,0.01729076]
[1644689567807,0.0105053,2963.8,2963.6,0.01729076]
[1644689568811,0.67451849,2963.8,2963.6,0.01729076]
[1644689569008,0.6850237,2963.8,2963.6,0.01729076]
[1644689569855,0.01050521,2963.8,2963.6,0.01729076]
[1644689570054,3.5,2963.9,2963.7,7.541]
[1644689570255,3.5,2963.9,2963.8,0.8739903]
[1644689570454,0.04201452,2964.3,2963.9,7.05]
[1644689570655,0.04201452,2964.3,2964.2,0.01729076]
[1644689570855,0.04201452,2964.3,2964.2,0.50829076]
[1644689571254,0.70158596,2964.9,2964.2,0.50829076]
[1644689571456,0.70158596,2964.9,2964.5,0.01729076]
[1644689572857,0.01050332,2964.8,2964.5,0.01729076]
[1644689573058,0.72525182,2964.4,2964.3,0.18589076]
[1644689573300,0.01050332,2964.8,2964.3,0.18589076]
[1644689573702,2.15305702,2965.5,2964.5,0.01729076]
[1644689573904,0.04200962,2964.9,2964.5,0.01729076]
[1644689574207,0.72005058,2964.8,2964.5,0.01729076]
[1644689574405,0.72005058,2964.8,2964.3,3.61636388]
[1644689574604,0.04200962,2964.9,2964.3,3.61636388]
[1644689574804,2.15305702,2965.5,2964.3,4.10736388]
[1644689575009,3.5884307,2965.5,2964.6,0.84323]
[1644689575307,0.01050342,2964.8,2964.3,0.01729076]
[1644689575506,0.01050342,2964.8,2964.7,0.0131007]
[1644689576208,3.6686,2965.5,2964.7,7.41420146]
[1644689576407,3.5,2965.5,2965.4,0.01729076]
[1644689576607,3.5,2965.5,2965.4,1.46619076]
[1644689576809,20.0,2965.6,2965.4,1.46619076]
[1644689576810,20.0,2965.6,2965.5,7.05]
[1644689577055,2.22403416,2966.3,2965.6,7.05]
[1644689577250,2.22403416,2966.3,2965.7,0.491]
[1644689577449,2.22403416,2966.3,2966.2,0.01729076]
[1644689577650,2.22403416,2966.3,2966.1,0.491]
[1644689578055,2.22403416,2966.3,2966.1,0.50829076]
[1644689578858,2.23453466,2966.3,2966.1,0.50829076]
[1644689579057,2.23453466,2966.3,2966.1,1.35107076]
[1644689579258,1.03936476,2966.0,2965.8,1.68556]
[1644689581109,1.04986582,2966.0,2965.8,1.68556]
[1644689582110,1.03936476,2966.0,2965.8,1.68556]
[1644689582308,1.04986582,2966.0,2965.9,0.01729076]
[1644689582513,1.04986582,2966.0,2965.9,1.02579076]
[1644689582909,1.04986582,2966.0,2965.9,2.51679076]